{"text_format":"1","workbook":"xlsx","n_sheets":1,"sheets":["Livro_ALUNO"],"not_rendered":{"charts":2,"images":0,"macros":0,"external_links":0,"defined_names":0,"comments":0,"pivot_tables":0},"unopened":[],"bounds":{"document_bytes":16777216,"sheet_cells":100000,"rows_first":2000,"rows_last":500,"rows_between":2000,"halvings":0,"cell_chars":16384,"cell_head_chars":4096},"cells_cut":0,"cells_raw":0,"read":"whole","date_system":"1900"}

{"sheet":"Livro_ALUNO","index":0,"n_rows":63,"n_cols":45,"rows_kept":63,"cut":false,"hidden":false,"merged":[[1,1,2,13],[55,6,56,9],[4,1,9,5]]}
[]
[null,"CONCLUSÕES DOS MEUS TRABALHOS ORTOGRÁFICOS "]
[]
[]
[]
[]
[]
[]
[]
[]
[null,null,null,null,null,null,null,null,null,null,null,null,null,null,null,null,null,null,null,null,null,null,null,null,null,null,null,null,null,null,null,null,null,null,null,null,null,null,null,null,null,null,null,null,"Total doentes"]
["Tr1",null,null,null,null,null,null,null,null,null,null,null,null,null,null,null,null,null,null,null,null,null,null,null,null,null,null,null,null,null,null,null,null,null,null,null,null,null,null,null,null,null,null,null,{"$f":"COUNTIF(B12:AR12,\"*\")","v":0}]
["Tr2",null,null,null,null,null,null,null,null,null,null,null,null,null,null,null,null,null,null,null,null,null,null,null,null,null,null,null,null,null,null,null,null,null,null,null,null,null,null,null,null,null,null,null,{"$f":"COUNTIF(B13:AR13,\"*\")","v":0}]
["Tr3",null,null,null,null,null,null,null,null,null,null,null,null,null,null,null,null,null,null,null,null,null,null,null,null,null,null,null,null,null,null,null,null,null,null,null,null,null,null,null,null,null,null,null,{"$f":"COUNTIF(B14:AR14,\"*\")","v":0}]
["Tr4",null,null,null,null,null,null,null,null,null,null,null,null,null,null,null,null,null,null,null,null,null,null,null,null,null,null,null,null,null,null,null,null,null,null,null,null,null,null,null,null,null,null,null,0]
["Tr5",null,null,null,null,null,null,null,null,null,null,null,null,null,null,null,null,null,null,null,null,null,null,null,null,null,null,null,null,null,null,null,null,null,null,null,null,null,null,null,null,null,null,null,0]
["Tr6",null,null,null,null,null,null,null,null,null,null,null,null,null,null,null,null,null,null,null,null,null,null,null,null,null,null,null,null,null,null,null,null,null,null,null,null,null,null,null,null,null,null,null,0]
["Tr7",null,null,null,null,null,null,null,null,null,null,null,null,null,null,null,null,null,null,null,null,null,null,null,null,null,null,null,null,null,null,null,null,null,null,null,null,null,null,null,null,null,null,null,0]
["Tr8",null,null,null,null,null,null,null,null,null,null,null,null,null,null,null,null,null,null,null,null,null,null,null,null,null,null,null,null,null,null,null,null,null,null,null,null,null,null,null,null,null,null,null,0]
["Tr9",null,null,null,null,null,null,null,null,null,null,null,null,null,null,null,null,null,null,null,null,null,null,null,null,null,null,null,null,null,null,null,null,null,null,null,null,null,null,null,null,null,null,null,0]
["Tr10",null,null,null,null,null,null,null,null,null,null,null,null,null,null,null,null,null,null,null,null,null,null,null,null,null,null,null,null,null,null,null,null,null,null,null,null,null,null,null,null,null,null,null,0]
["Tr11",null,null,null,null,null,null,null,null,null,null,null,null,null,null,null,null,null,null,null,null,null,null,null,null,null,null,null,null,null,null,null,null,null,null,null,null,null,null,null,null,null,null,null,0]
["Tr12",null,null,null,null,null,null,null,null,null,null,null,null,null,null,null,null,null,null,null,null,null,null,null,null,null,null,null,null,null,null,null,null,null,null,null,null,null,null,null,null,null,null,null,0]
["Tr13",null,null,null,null,null,null,null,null,null,null,null,null,null,null,null,null,null,null,null,null,null,null,null,null,null,null,null,null,null,null,null,null,null,null,null,null,null,null,null,null,null,null,null,0]
["Tr14",null,null,null,null,null,null,null,null,null,null,null,null,null,null,null,null,null,null,null,null,null,null,null,null,null,null,null,null,null,null,null,null,null,null,null,null,null,null,null,null,null,null,null,0]
["Tr15",null,null,null,null,null,null,null,null,null,null,null,null,null,null,null,null,null,null,null,null,null,null,null,null,null,null,null,null,null,null,null,null,null,null,null,null,null,null,null,null,null,null,null,0]
["Tr16",null,null,null,null,null,null,null,null,null,null,null,null,null,null,null,null,null,null,null,null,null,null,null,null,null,null,null,null,null,null,null,null,null,null,null,null,null,null,null,null,null,null,null,0]
["Tr17",null,null,null,null,null,null,null,null,null,null,null,null,null,null,null,null,null,null,null,null,null,null,null,null,null,null,null,null,null,null,null,null,null,null,null,null,null,null,null,null,null,null,null,0]
["Tr18",null,null,null,null,null,null,null,null,null,null,null,null,null,null,null,null,null,null,null,null,null,null,null,null,null,null,null,null,null,null,null,null,null,null,null,null,null,null,null,null,null,null,null,0]
["Tr19",null,null,null,null,null,null,null,null,null,null,null,null,null,null,null,null,null,null,null,null,null,null,null,null,null,null,null,null,null,null,null,null,null,null,null,null,null,null,null,null,null,null,null,0]
["Tr20",null,null,null,null,null,null,null,null,null,null,null,null,null,null,null,null,null,null,null,null,null,null,null,null,null,null,null,null,null,null,null,null,null,null,null,null,null,null,null,null,null,null,null,0]
["Tr21",null,null,null,null,null,null,null,null,null,null,null,null,null,null,null,null,null,null,null,null,null,null,null,null,null,null,null,null,null,null,null,null,null,null,null,null,null,null,null,null,null,null,null,0]
["Total",{"$f":"COUNTIF(B12:B32,\"*\")","v":0},{"$f":"COUNTIF(C12:C32,\"*\")","v":0},{"$f":"COUNTIF(D12:D32,\"*\")","v":0},0,0,0,0,0,0,0,0,0,0,0,0,0,0,0,0,0,0,0,0,0,0,0,0,0,0,0,0,0,0,0,0,0,0,0,0,0,0,0,{"$f":"COUNTIF(B12:AR12,\"*\")","v":0},{"$f":"SUM(AS12:AS32)","v":0}]
[]
[null,"Data","Tipo trabalho","Total doentes","Exame"]
["Tr1",null,null,{"$f":"AS12","v":0},{"$f":"IF(D36=0,\"Parabéns!\",IF(D36<=3,\"Podes melhorar\",IF(D36<=4,\"Continua a estudar!\",IF(D36>=5,\"Tens de te aplicar mais\",))))","v":"Parabéns!"}]
["Tr2",null,null,{"$f":"AS13","v":0},{"$f":"IF(D37=0,\"Parabéns!\",IF(D37<=3,\"Podes melhorar\",IF(D37<=4,\"Continua a estudar!\",IF(D37>=5,\"Tens de te aplicar mais\",))))","v":"Parabéns!"}]
["Tr3",null,null,0,"Parabéns!"]
["Tr4",null,null,0,"Parabéns!"]
["Tr5",null,null,0,"Parabéns!"]
["Tr6",null,null,0,"Parabéns!"]
["Tr7",null,null,0,"Parabéns!"]
["Tr8",null,null,0,"Parabéns!"]
["Tr9",null,null,0,"Parabéns!"]
["Tr10",null,null,0,"Parabéns!"]
["Tr11",null,null,0,"Parabéns!"]
["Tr12",null,null,0,"Parabéns!"]
["Tr13",null,null,0,"Parabéns!"]
["Tr14",null,null,0,"Parabéns!"]
["Tr15",null,null,0,"Parabéns!"]
["Tr16",null,null,0,"Parabéns!"]
["Tr17",null,null,0,"Parabéns!"]
["Tr18",null,null,0,"Parabéns!"]
["Tr19",null,null,0,"Parabéns!"]
["Tr20",null,null,0,"Parabéns!"]
["Tr21",null,null,null,"Parabéns!",null,"Nota: O ideal era ter o gráfico branco. "]
["Total",{"$f":"COUNT(B36:B56,)","v":1},{"$f":"COUNTIF(C36:C56,\"*\")","v":0},{"$f":"SUM(AS12:AS32)","v":0}]
[]
[]
[null,"Composições","Resumos","Cópias","Ditados"]
["Trabalhos","COM","R","C","D"]
["Total Trabalhos",{"$f":"COUNTIF(C36:C56,\"COM\")","v":0},{"$f":"COUNTIF(C36:C56,\"R\")","v":0},{"$f":"COUNTIF(C36:C56,\"C\")","v":0},{"$f":"COUNTIF(C36:C56,\"D\")","v":0}]
["Total Palavras",{"$f":"SUMIF(C36:C56,\"=COM\",D36:D56)","v":0},{"$f":"SUMIF(C36:C56,\"=R\",D36:D56)","v":0},{"$f":"SUMIF(C36:C56,\"=C\",D36:D56)","v":0},{"$f":"SUMIF(C36:C56,\"=D\",D36:D56)","v":0}]